bitfinex/quotes_SOLUSD_20250802
["timestamp","ask_amount","ask_price","bid_price","bid_amount"]
[1754110036254,0.68,165.44,165.43,0.06]
[1754110036650,11.50688338,165.44,165.43,0.06]
[1754110039452,17.5513708,165.44,165.43,0.06]
[1754110039971,11.50688338,165.44,165.43,0.06]
[1754110040672,1.04,165.42,165.41,0.06]
[1754110040872,53.74688338,165.42,165.41,0.06]
[1754110041391,53.38688338,165.42,165.41,0.06]
[1754110043361,53.38688338,165.42,165.39,0.06]
[1754110043362,147.14,165.41,165.39,0.06]
[1754110043568,198.80688338,165.4,165.39,0.06]
[1754110043768,199.48688338,165.4,165.39,0.06]
[1754110045579,204.32368729,165.4,165.39,0.06]
[1754110045780,207.47914212,165.4,165.39,0.06]
[1754110046093,61.37914212,165.4,165.39,0.06]
[1754110046656,67.42509133,165.4,165.39,0.06]
[1754110047882,84.2097753,165.4,165.39,0.06]
[1754110049161,110.2097753,165.4,165.39,0.06]
[1754110051582,110.2097753,165.4,165.33,6.74234018]
[1754110051885,110.2097753,165.4,165.32,0.06]
[1754110051886,6.75234018,165.37,165.32,6.81234018]
[1754110052070,41.9,165.36,165.32,6.81234018]
[1754110052270,146.4,165.35,165.32,6.81234018]
[1754110052867,146.4,165.35,165.33,6.75234018]
[1754110053069,146.4,165.35,165.34,6.75234018]
[1754110053660,146.4,165.35,165.34,7.44234018]
[1754110054862,146.4,165.35,165.34,11.24011416]
[1754110057382,146.1,165.39,165.34,11.24011416]
[1754110057585,146.1,165.39,165.38,10.55011416]
[1754110057772,146.1,165.39,165.38,11.24011416]
[1754110060393,146.1,165.39,165.38,10.55011416]
[1754110061690,146.13,165.39,165.38,10.55011416]
[1754110061894,146.84,165.39,165.35,0.69]
[1754110062066,0.71,165.38,165.37,10.55011416]
[1754110062265,0.71,165.38,165.36,10.55011416]
[1754110063373,146.4,165.37,165.36,10.55011416]
[1754110065478,146.4,165.37,165.36,11.24011416]
[1754110067199,146.4,165.37,165.36,0.69]
[1754110067496,146.4,165.37,165.36,11.24011416]
[1754110068590,146.4,165.37,165.36,0.69]
[1754110068799,146.4,165.37,165.36,11.24011416]
[1754110069400,146.1,165.37,165.36,11.24011416]
[1754110073308,146.1,165.37,165.36,21.79022832]
[1754110073485,146.1,165.37,165.36,10.55011416]
[1754110073815,146.1,165.37,165.36,11.24011416]
[1754110074302,146.1,165.37,165.36,21.79022832]
[1754110074801,146.1,165.37,165.34,16.78468397]
[1754110075010,0.3,165.36,165.35,26.69]
[1754110076223,0.3,165.36,165.35,37.24011416]
[1754110076427,0.3,165.36,165.35,36.55011416]
[1754110077103,0.3,165.36,165.35,37.24011416]
[1754110078300,146.1,165.37,165.35,37.24011416]
[1754110078795,146.1,165.37,165.36,6.75003751]
[1754110079587,146.81,165.37,165.36,6.75003751]
[1754110083994,146.81,165.37,165.35,6.45003751]
[1754110083995,146.1,165.36,165.35,6.45003751]
[1754110084189,146.76,165.36,165.35,6.75003751]
[1754110085893,146.76,165.36,165.34,6.75003751]
[1754110086096,0.66,165.35,165.34,6.75003751]
[1754110086296,42.54,165.35,165.34,6.75003751]
[1754110087695,0.66,165.35,165.34,6.75003751]
[1754110088992,0.66,165.35,165.33,6.75003751]
[1754110089420,41.88,165.34,165.33,6.75003751]
[1754110089798,42.54,165.34,165.33,6.75003751]
[1754110091023,0.66,165.34,165.33,6.75003751]
[1754110093034,146.76,165.34,165.33,6.75003751]
[1754110095829,146.1,165.34,165.33,6.75003751]
[1754110096129,146.1,165.34,165.33,7.45003751]
[1754110096334,146.1,165.34,165.33,6.75003751]
[1754110097636,146.76,165.34,165.33,6.75003751]
[1754110098913,0.66,165.34,165.33,6.75003751]
[1754110102234,0.03,165.37,165.33,7.45003751]
[1754110102534,0.03,165.37,165.36,6.75003751]
[1754110104030,146.79,165.37,165.36,6.75003751]
[1754110105349,146.79,165.37,165.33,0.76]
[1754110105536,146.13,165.37,165.36,6.75003751]
[1754110106340,146.79,165.37,165.36,6.75003751]
[1754110107150,146.13,165.37,165.36,6.75003751]
[1754110107320,146.13,165.37,165.34,0.7]
[1754110107521,146.13,165.37,165.36,7.45003751]
[1754110107948,146.13,165.37,165.36,6.75003751]
[1754110113755,0.03,165.37,165.36,6.75003751]
[1754110117449,0.03,165.37,165.36,34.44018755]
[1754110123154,0.03,165.39,165.36,34.44018755]
[1754110123466,0.03,165.39,165.38,6.75003751]
[1754110123976,0.03,165.39,165.38,7.44003751]
[1754110128174,146.1,165.4,165.38,7.44003751]
[1754110128348,146.1,165.4,165.39,33.44003751]
[1754110130567,50.0431151,165.44,165.39,33.44003751]
[1754110130775,50.0431151,165.44,165.43,6.75003751]
[1754110137985,50.0431151,165.44,165.36,27.00015004]
[1754110138165,41.88,165.45,165.4,6.75003751]
[1754110138166,91.9231151,165.43,165.4,6.75003751]
[1754110138363,91.9231151,165.42,165.4,6.75003751]
[1754110138564,0.71,165.41,165.4,6.75003751]
[1754110145987,0.71,165.41,165.39,6.75003751]
[1754110146282,91.2331151,165.4,165.39,6.75003751]
[1754110146509,91.9131151,165.4,165.39,6.75003751]
[1754110146874,91.9131151,165.4,165.35,0.78]
[1754110147063,50.0131151,165.39,165.37,6.75003751]
[1754110147262,50.0131151,165.39,165.38,6.75003751]
[1754110147864,50.0131151,165.39,165.38,6.81003751]
[1754110149182,50.0131151,165.39,165.38,0.06]
[1754110151376,50.0131151,165.39,165.38,6.81003751]
[1754110151675,50.0131151,165.39,165.38,0.06]
[1754110152194,0.68,165.39,165.38,0.06]
[1754110162901,0.68,165.39,165.38,6.81003751]
[1754110164319,41.93,165.4,165.38,6.81003751]
[1754110164491,42.61,165.4,165.38,6.81003751]
[1754110165916,0.03,165.4,165.39,7.47003751]
[1754110177810,0.03,165.4,165.39,6.75003751]
[1754110178510,0.03,165.4,165.38,0.06]
[1754110178511,0.72,165.4,165.38,0.06]
[1754110178698,0.72,165.4,165.39,6.75003751]
[1754110179210,0.03,165.4,165.39,6.75003751]
[1754110179817,0.03,165.4,165.39,7.41003751]
[1754110182903,0.03,165.4,165.39,37.19983033]
[1754110183102,0.03,165.4,165.39,26.66]
[1754110183300,0.03,165.4,165.39,37.19983033]
[1754110189344,0.03,165.4,165.39,36.53983033]
[1754110191238,0.03,165.4,165.39,36.59983033]
[1754110193126,0.03,165.4,165.39,37.25983033]
[1754110195558,0.03,165.4,165.39,36.59983033]
[1754110196431,0.03,165.4,165.39,78.47983033]
[1754110198422,0.72,165.4,165.39,10.59983033]
[1754110201069,0.03,165.4,165.39,11.27983033]
[1754110202838,0.03,165.4,165.39,7.48657461]
[1754110203464,146.1,165.41,165.39,7.48657461]
[1754110203675,146.1,165.41,165.4,7.42657461]
[1754110205451,0.03,165.42,165.4,7.42657461]
[1754110205657,0.03,165.42,165.41,6.74657461]
[1754110206646,0.03,165.42,165.41,7.42657461]
[1754110206936,0.03,165.42,165.41,6.74657461]
[1754110207645,0.69,165.42,165.41,6.74657461]
[1754110209743,0.03,165.42,165.41,6.74657461]
[1754110213443,0.69,165.42,165.41,6.74657461]
[1754110218171,0.69,165.42,165.4,41.88]
[1754110218357,0.69,165.42,165.41,6.74657461]
[1754110232968,0.03,165.42,165.41,6.74657461]
[1754110238188,0.74,165.42,165.41,6.74657461]
[1754110240280,0.03,165.42,165.41,6.74657461]
[1754110252000,0.03,165.42,165.4,0.76]
[1754110252187,0.03,165.42,165.41,6.74657461]
[1754110253005,0.03,165.42,165.41,7.44657461]
[1754110258315,0.03,165.42,165.41,6.74657461]
[1754110259601,0.74,165.42,165.41,6.74657461]
[1754110264104,42.6,165.42,165.41,6.74657461]
[1754110275640,42.6,165.42,165.4,0.06]
[1754110275641,146.1,165.41,165.4,6.80657461]
[1754110275944,150.88062121,165.41,165.4,6.80657461]
[1754110276544,150.88062121,165.41,165.4,0.06]
[1754110279743,157.62719582,165.41,165.4,0.06]
[1754110279923,34.35746349,165.41,165.4,0.06]
[1754110280843,37.51305168,165.41,165.4,0.06]
[1754110281022,39.93707468,165.41,165.4,0.06]
[1754110284016,65.93707468,165.41,165.4,0.06]
[1754110286251,39.93707468,165.41,165.4,0.06]
[1754110288557,39.93707468,165.41,165.39,0.06]
[1754110288854,79.40719582,165.4,165.39,0.06]
[1754110289023,162.76468397,165.38,165.37,0.06]
[1754110289226,215.47187979,165.38,165.37,0.06]
[1754110289536,222.21856016,165.38,165.37,0.06]
[1754110290042,224.64302316,165.38,165.37,0.06]
[1754110291333,78.66302316,165.38,165.37,0.06]
[1754110292454,74.58240195,165.38,165.37,0.06]
[1754110292631,78.63981643,165.38,165.37,0.06]
[1754110295154,145.92,165.35,165.33,0.06]
[1754110295352,48.62657461,165.34,165.33,0.06]
[1754110295560,53.49105469,165.34,165.33,0.06]
[1754110295745,51.74147861,165.34,165.33,0.06]
[1754110297855,74.5743058,165.34,165.33,0.06]
[1754110298737,79.29361513,165.34,165.33,0.06]
[1754110301162,82.45045102,165.34,165.33,0.06]
[1754110305548,112.50485604,165.34,165.33,0.06]
[1754110309770,105.75828143,165.34,165.33,0.06]
[1754110309968,112.50485604,165.34,165.33,0.06]
[1754110311075,90.26642386,165.34,165.33,0.73]
[1754110311696,94.32257731,165.34,165.33,0.73]
[1754110313558,75.11298934,165.34,165.33,0.73]
[1754110313748,71.05683589,165.34,165.33,0.73]
[1754110316272,3.15683589,165.34,165.33,7.47657461]
[1754110316476,41.9,165.34,165.33,7.47657461]
[1754110316982,41.9,165.34,165.33,0.73]
[1754110317162,41.9,165.34,165.33,7.47657461]
[1754110321691,41.9,165.34,165.33,0.73]
[1754110321975,41.9,165.34,165.33,7.47657461]
[1754110322567,41.9,165.34,165.33,15.01314861]
[1754110323278,41.95,165.35,165.33,15.01314861]
[1754110323477,41.97,165.35,165.34,7.45657461]
[1754110323673,0.03,165.35,165.34,7.45657461]
[1754110323978,41.97,165.35,165.34,7.45657461]
[1754110326081,41.95,165.35,165.34,7.45657461]
[1754110326711,41.95,165.35,165.34,10.61229061]
[1754110327761,0.03,165.35,165.34,10.61229061]
[1754110330180,0.03,165.35,165.34,7.45657461]
[1754110332584,0.03,165.35,165.34,34.44287305]
[1754110332978,0.03,165.35,165.34,7.45657461]
[1754110334682,0.03,165.35,165.34,34.44287305]
[1754110334880,0.03,165.35,165.34,7.45657461]
[1754110337963,0.03,165.35,165.34,34.44287305]
[1754110339291,0.03,165.35,165.34,7.45657461]
[1754110341592,0.03,165.35,165.34,34.44287305]
[1754110344374,0.03,165.35,165.34,7.45657461]
[1754110344574,0.03,165.35,165.34,7.51657461]
[1754110349605,0.7,165.35,165.34,6.80657461]
[1754110352297,0.03,165.35,165.34,6.80657461]
[1754110353004,0.69,165.35,165.34,6.80657461]
[1754110356305,42.59,165.35,165.34,6.80657461]
[1754110366915,42.59,165.35,165.34,0.06]
[1754110368417,46.6694121,165.35,165.34,0.06]
[1754110370313,42.59,165.35,165.34,0.06]
[1754110372021,102.24755964,165.35,165.34,0.06]
[1754110373318,102.24631134,165.35,165.34,0.06]
[1754110379135,76.24631134,165.35,165.34,0.06]
[1754110381221,76.24631134,165.35,165.32,0.06]
[1754110381222,188.76468397,165.33,165.32,0.06]
[1754110381421,241.4885339,165.33,165.32,0.06]
[1754110381728,242.1985339,165.33,165.32,0.06]
[1754110382397,248.24704294,165.33,165.32,0.06]
[1754110382800,222.24704294,165.33,165.32,0.06]
[1754110387007,225.40446521,165.33,165.32,0.06]
[1754110388828,145.8,165.29,165.27,0.7]
[1754110389012,41.9,165.28,165.27,0.7]
[1754110390123,48.64657461,165.28,165.27,0.7]
[1754110390331,48.64657461,165.28,165.26,0.9]
[1754110391714,48.64657461,165.28,165.27,0.7]
[1754110393321,56.58147202,165.28,165.27,0.7]
[1754110393513,56.58147202,165.28,165.26,0.9]
[1754110394116,56.58147202,165.28,165.26,0.2]
[1754110394323,57.29147202,165.28,165.26,0.2]
[1754110394729,145.8,165.27,165.26,0.2]
[1754110399021,187.72,165.27,165.26,7.64657461]
[1754110400717,41.92,165.27,165.26,7.64657461]
[1754110405324,41.92,165.27,165.26,0.9]
[1754110405548,41.92,165.27,165.26,7.64657461]
[1754110416340,41.92,165.27,165.26,6.94657461]
[1754110418150,46.00106128,165.27,165.26,6.94657461]
[1754110420945,4.08106128,165.27,165.26,7.64657461]
[1754110421262,41.9,165.29,165.26,7.64657461]
[1754110421436,41.9,165.29,165.28,6.74657461]
[1754110421636,45.98372433,165.29,165.28,7.44657461]
[1754110422960,4.08372433,165.29,165.28,7.44657461]
[1754110424036,41.93,165.3,165.28,7.44657461]
[1754110424236,41.93,165.3,165.29,7.44657461]
[1754110424443,46.01477559,165.3,165.29,7.44657461]
[1754110430673,46.01477559,165.3,165.29,6.74657461]
[1754110433149,46.73477559,165.3,165.29,6.74657461]
[1754110440076,4.11477559,165.3,165.29,7.44657461]
[1754110440281,41.93,165.3,165.29,7.44657461]
[1754110440469,46.01477559,165.3,165.29,7.44657461]
[1754110441487,0.03,165.3,165.29,7.44657461]
[1754110442758,0.03,165.3,165.27,0.06]
[1754110442958,4.80961415,165.3,165.29,6.74657461]
[1754110443363,4.10961415,165.3,165.29,6.74657461]
[1754110445887,4.80961415,165.3,165.29,6.74657461]
[1754110452387,4.80961415,165.3,165.29,6.80657461]
[1754110453795,4.10961415,165.3,165.29,6.80657461]
[1754110456572,4.80961415,165.3,165.29,0.06]
[1754110456779,4.80961415,165.3,165.29,6.80657461]
[1754110457994,4.10961415,165.3,165.29,6.80657461]
[1754110460719,4.10961415,165.3,165.29,0.06]
[1754110460917,4.10961415,165.3,165.29,6.80657461]
[1754110461799,4.80961415,165.3,165.29,6.80657461]
[1754110464719,4.80961415,165.3,165.29,0.06]
[1754110466035,16.65278291,165.3,165.29,0.06]
[1754110466400,22.70238968,165.3,165.29,0.06]
[1754110468018,60.3904795,165.3,165.29,0.06]
[1754110468221,34.3904795,165.3,165.29,0.06]
[1754110468428,42.78468397,165.28,165.27,0.06]
[1754110468598,95.51087273,165.28,165.27,0.06]
[1754110468803,96.21087273,165.28,165.27,0.06]
[1754110469703,162.62468397,165.26,165.25,0.2]
[1754110469903,215.37087273,165.26,165.25,0.2]
[1754110470119,216.07087273,165.26,165.25,0.2]
[1754110470822,218.49710073,165.26,165.25,0.2]
[1754110471200,221.65548457,165.26,165.25,0.2]
[1754110471910,253.7065556,165.26,165.25,0.2]
[1754110472522,107.8665556,165.26,165.25,0.2]
[1754110474119,90.03559004,165.26,165.25,0.2]
[1754110474912,84.9302207,165.26,165.25,0.2]
[1754110475524,90.02120617,165.26,165.25,0.2]
[1754110477512,145.84,165.23,165.22,0.06]
[1754110477712,198.58618876,165.23,165.22,0.06]
[1754110478015,199.28618876,165.23,165.22,0.06]
[1754110480032,198.58618876,165.23,165.22,0.06]
[1754110481716,195.20657461,165.23,165.22,0.06]
[1754110482227,145.84,165.23,165.22,7.51657461]
[1754110482429,187.76,165.23,165.22,7.51657461]
[1754110484738,187.76,165.23,165.22,0.77]
[1754110484938,187.76,165.23,165.22,7.51657461]
[1754110487659,145.84,165.23,165.22,7.51657461]
[1754110487945,187.76,165.23,165.22,7.51657461]
[1754110490331,145.84,165.23,165.22,7.51657461]
[1754110502046,145.84,165.23,165.22,6.80657461]
[1754110503548,146.55,165.23,165.22,6.80657461]
[1754110503949,149.70823893,165.23,165.22,6.80657461]
[1754110504266,149.70823893,165.23,165.22,0.06]
[1754110507270,149.70823893,165.23,165.22,6.80657461]
[1754110509360,153.78551912,165.23,165.22,6.80657461]
[1754110509553,153.78551912,165.23,165.22,0.06]
[1754110509872,153.78551912,165.23,165.22,6.80657461]
[1754110512175,153.78551912,165.23,165.22,0.06]
[1754110531390,153.07551912,165.23,165.22,0.06]
[1754110532288,153.75551912,165.23,165.22,0.06]
[1754110535373,153.07551912,165.23,165.22,0.06]
[1754110535683,145.84,165.23,165.22,7.49657461]
[1754110539294,145.84,165.23,165.22,6.80657461]
[1754110539588,150.60498664,165.23,165.22,6.80657461]
[1754110543593,149.92498664,165.23,165.22,7.49657461]
[1754110544406,0.03,165.24,165.22,7.49657461]
[1754110544692,0.03,165.24,165.23,7.43657461]
[1754110548671,145.87,165.26,165.23,7.43657461]
[1754110548903,145.87,165.26,165.25,6.74657461]
[1754110549101,145.87,165.26,165.25,7.43657461]
[1754110551978,0.03,165.26,165.25,34.42287305]
[1754110553578,0.03,165.26,165.25,7.43657461]
[1754110555006,42.01,165.3,165.29,6.74657461]
[1754110555176,42.69,165.3,165.29,6.74657461]
[1754110555377,0.03,165.3,165.29,6.74657461]
[1754110557202,0.03,165.3,165.29,7.43657461]
[1754110566991,0.03,165.3,165.29,6.74657461]
[1754110568693,0.73,165.3,165.29,6.74657461]
[1754110573508,42.69,165.3,165.29,6.74657461]
[1754110579406,41.99,165.3,165.29,6.74657461]
[1754110580130,0.03,165.3,165.29,7.46657461]
[1754110580332,0.03,165.3,165.29,6.74657461]
[1754110583339,0.03,165.3,165.28,0.72]
[1754110583506,0.73,165.3,165.29,6.74657461]
[1754110585837,0.73,165.3,165.26,0.06]
[1754110586046,0.73,165.3,165.29,6.74657461]
[1754110589639,0.73,165.3,165.26,0.06]
[1754110589831,0.73,165.3,165.29,6.74657461]
[1754110591234,0.73,165.3,165.26,0.78]
[1754110591538,0.73,165.3,165.29,6.74657461]
[1754110593014,0.03,165.3,165.29,6.74657461]
[1754110595538,0.03,165.3,165.29,7.42657461]
[1754110595946,0.03,165.3,165.29,6.74657461]
[1754110600050,0.03,165.3,165.29,7.42657461]
[1754110602834,0.03,165.3,165.29,25.60894461]
[1754110612060,0.03,165.3,165.29,7.42657461]
[1754110613554,0.03,165.3,165.29,6.74657461]
[1754110613756,0.03,165.3,165.29,7.42657461]
[1754110614361,0.03,165.3,165.29,25.60894361]
[1754110617571,0.03,165.3,165.29,6.74657461]
[1754110620060,0.75,165.3,165.29,6.74657461]
[1754110621073,0.75,165.3,165.28,6.74657461]
[1754110621871,42.63,165.3,165.28,6.74657461]
[1754110622173,0.67,165.29,165.28,6.74657461]
[1754110622369,0.67,165.29,165.27,6.74657461]
[1754110623778,0.67,165.29,165.26,6.80657461]
[1754110625161,0.7,165.29,165.26,6.80657461]
[1754110625361,0.7,165.29,165.27,6.74657461]
[1754110629288,0.03,165.29,165.27,6.74657461]
[1754110629483,0.67,165.28,165.27,6.74657461]
[1754110634082,0.03,165.29,165.27,6.74657461]
[1754110634265,0.7,165.29,165.28,6.74657461]
[1754110635484,42.6,165.29,165.28,6.74657461]
[1754110639093,42.6,165.29,165.26,0.72]
[1754110639283,42.6,165.29,165.28,6.74657461]
[1754110639679,41.93,165.29,165.28,7.40657461]
[1754110640084,41.93,165.29,165.28,6.74657461]
[1754110640469,0.03,165.29,165.28,7.40657461]
[1754110640669,0.03,165.29,165.28,34.39287305]
[1754110641188,0.03,165.29,165.28,7.40657461]
[1754110643769,0.03,165.31,165.3,26.0]
[1754110643988,0.03,165.31,165.3,32.74657461]
[1754110644386,0.03,165.31,165.3,33.40657461]
[1754110644587,0.03,165.31,165.3,35.83059661]
[1754110657623,0.03,165.31,165.3,77.73059661]
[1754110666532,0.03,165.32,165.3,77.73059661]
[1754110666731,0.03,165.32,165.31,6.74657461]
[1754110667128,145.86,165.37,165.31,6.74657461]
[1754110667335,17.73124402,165.42,165.31,0.65]
[1754110667336,145.86,165.36,165.31,0.65]
[1754110668636,145.86,165.36,165.35,6.74657461]
[1754110668840,32.14560171,165.41,165.35,6.74657461]
[1754110669136,3.15578902,165.39,165.35,6.74657461]
[1754110669430,0.67,165.37,165.35,6.74657461]
[1754110670432,0.7,165.37,165.35,6.74657461]
[1754110670807,0.7,165.37,165.36,6.74657461]
[1754110684632,0.03,165.37,165.36,6.74657461]
[1754110685334,4.11073039,165.37,165.36,6.74657461]
[1754110690961,4.11729746,165.37,165.36,6.74657461]
[1754110691755,4.11729746,165.37,165.36,7.41657461]
[1754110693262,4.11729746,165.37,165.36,6.74657461]
[1754110694752,4.11729746,165.37,165.36,7.41657461]
[1754110696662,4.11729746,165.37,165.36,6.74657461]
[1754110696848,4.79729746,165.37,165.36,6.74657461]
[1754110697758,4.11729746,165.37,165.36,6.74657461]
[1754110699060,4.11729746,165.37,165.36,0.67]
[1754110699237,0.03,165.37,165.36,34.40287305]
[1754110699949,0.03,165.37,165.36,38.51831405]
[1754110702361,0.03,165.39,165.36,64.51831405]
[1754110702664,0.03,165.39,165.38,6.74657461]
[1754110703344,0.03,165.39,165.38,7.41657461]
[1754110703539,0.03,165.39,165.38,9.83971561]
[1754110710573,0.03,165.4,165.38,9.83971561]
[1754110710759,0.03,165.4,165.39,7.45657461]
[1754110711272,0.03,165.4,165.39,25.62793061]
[1754110717959,146.2,165.41,165.39,25.62793061]
[1754110718272,146.2,165.41,165.4,6.74657461]
[1754110718457,146.2,165.41,165.4,7.45657461]
[1754110718776,146.2,165.41,165.4,25.62683061]
[1754110720189,0.1,165.41,165.4,25.62683061]
[1754110722265,0.03,165.42,165.4,25.62683061]
[1754110722470,0.03,165.42,165.41,7.45657461]
[1754110723596,0.03,165.42,165.41,25.62572961]
[1754110723799,0.03,165.42,165.41,24.91572961]
[1754110725687,0.03,165.42,165.41,25.62572961]
[1754110735279,0.03,165.42,165.41,25.68572961]
[1754110743718,0.03,165.42,165.41,24.97572961]
[1754110748905,0.03,165.42,165.41,25.69572961]
[1754110750597,0.03,165.42,165.41,24.97572961]
[1754110751608,0.03,165.42,165.41,25.69572961]
[1754110752893,0.03,165.42,165.41,6.80657461]
[1754110755116,0.03,165.42,165.41,7.52657461]
[1754110767430,0.03,165.42,165.41,0.78]
[1754110767600,0.03,165.42,165.41,7.52657461]
[1754110783039,0.03,165.42,165.41,0.78]
[1754110783220,0.03,165.42,165.41,7.52657461]
[1754110783424,0.73,165.42,165.41,0.06]
[1754110783735,0.03,165.42,165.41,6.80657461]
[1754110785524,0.03,165.42,165.41,7.51657461]
[1754110787846,0.73,165.42,165.41,0.06]
[1754110788029,0.73,165.42,165.41,6.80657461]
[1754110788539,42.75,165.42,165.41,6.80657461]
[1754110797950,0.73,165.42,165.41,6.80657461]
[1754110798155,42.75,165.42,165.41,6.80657461]
[1754110799735,42.75,165.42,165.41,0.06]
[1754110800136,46.82820596,165.42,165.41,0.06]
[1754110801555,42.75,165.42,165.41,0.06]
[1754110801748,42.75,165.42,165.41,6.80657461]
[1754110802164,42.75,165.42,165.41,0.06]
[1754110802761,53.57324054,165.42,165.41,0.06]
[1754110803759,46.82666593,165.42,165.41,0.06]
[1754110804076,53.57324054,165.42,165.41,0.06]
[1754110804366,4.80666593,165.42,165.41,0.06]
[1754110804558,42.79,165.42,165.41,0.06]
[1754110804853,53.6108302,165.42,165.41,0.06]
[1754110805058,46.86425559,165.42,165.41,0.06]
[1754110805364,53.6108302,165.42,165.41,0.06]
[1754110807278,46.86425559,165.42,165.41,0.06]
[1754110807564,42.79,165.42,165.41,0.06]
[1754110809343,0.03,165.42,165.41,0.06]
[1754110809544,42.09,165.42,165.41,0.75]
[1754110810057,42.09,165.42,165.41,7.49657461]
[1754110814696,42.09,165.42,165.41,0.75]
[1754110814848,42.8,165.42,165.41,6.80657461]
[1754110816051,42.8,165.42,165.41,0.06]
[1754110817050,42.09,165.42,165.41,0.06]
[1754110819656,42.09,165.42,165.41,7.49657461]
[1754110819987,0.03,165.42,165.41,7.49657461]
[1754110821681,0.03,165.42,165.41,33.49657461]
[1754110823873,0.03,165.42,165.41,35.91912861]
[1754110830492,145.69,165.45,165.41,35.91912861]
[1754110830684,146.4,165.45,165.44,6.74657461]
[1754110830874,146.4,165.45,165.42,0.66]
[1754110831074,146.4,165.45,165.44,6.74657461]
[1754110836396,146.4,165.45,165.41,28.482554]
[1754110836604,145.69,165.45,165.44,6.74657461]
[1754110837222,146.4,165.45,165.44,6.74657461]
[1754110839503,188.42,165.45,165.44,6.74657461]
[1754110839802,188.42,165.45,165.41,26.72]
[1754110839803,188.42,165.45,165.41,0.06]
[1754110839982,0.71,165.44,165.43,6.74657461]
[1754110840876,0.71,165.44,165.41,0.06]
[1754110840877,0.71,165.44,165.42,6.74657461]
[1754110841080,0.71,165.44,165.41,6.80657461]
[1754110841478,42.02,165.43,165.41,6.80657461]
[1754110841686,0.71,165.42,165.41,6.80657461]
[1754110842379,42.02,165.43,165.41,6.80657461]
[1754110842700,42.73,165.43,165.42,6.74657461]
[1754110843204,42.73,165.43,165.41,6.80657461]
[1754110843406,42.73,165.43,165.41,0.06]
[1754110843591,0.71,165.42,165.41,0.06]
[1754110845088,7.45657461,165.42,165.41,0.06]
[1754110845288,11.52690689,165.42,165.41,0.06]
[1754110848693,4.78033228,165.42,165.41,0.06]
[1754110848895,11.52690689,165.42,165.41,0.06]
[1754110849998,17.57212512,165.42,165.41,0.06]
[1754110850302,17.57212512,165.42,165.39,0.06]
[1754110850303,146.04,165.41,165.39,0.06]
[1754110850503,52.81690689,165.4,165.39,0.06]
[1754110850802,53.52690689,165.4,165.39,0.06]
[1754110851305,59.5728561,165.4,165.39,0.06]
[1754110852107,102.35754007,165.4,165.39,0.06]
[1754110852799,106.16777648,165.4,165.39,0.06]
[1754110853117,111.27304223,165.4,165.39,0.06]
[1754110853413,106.16777648,165.4,165.39,0.06]
[1754110855108,64.16777648,165.4,165.39,0.06]
[1754110855300,82.6871433,165.4,165.39,0.06]
[1754110855609,11.26681102,165.41,165.39,0.06]
[1754110855809,42.08,165.4,165.39,0.06]
[1754110856192,42.08,165.4,165.39,0.72]
[1754110862296,42.08,165.4,165.39,11.27681102]
[1754110863420,42.08,165.4,165.39,0.72]
[1754110863598,42.08,165.4,165.39,11.27681102]
[1754110870725,34.1038558,165.4,165.39,11.27681102]
[1754110873557,34.1038558,165.4,165.39,0.06]
[1754110879112,34.7638558,165.4,165.39,0.06]
[1754110879323,45.32066682,165.4,165.39,0.06]